[Event "Titled Tuesday Blitz April 4 Early 2023"]
[White "Kalajzic, Ivan"]
[Black "Larina, Maria"]
[WhiteFideId "14506378"]
[BlackFideId "24113182"]
[WhiteElo "2203"]
[BlackElo "1848"]
[Result "1/2-1/2"]
[Round "06"]
[TimeControl "180+2"]
[Date "2023.04.04"]
[WhiteClock "0:00:08"]
[BlackClock "0:00:03"]

1. d4 {[%clk 0:02:57]}  f5 {[%clk 0:02:59]} 2. g4 {[%clk 0:02:54]}  fxg4 {[%clk 0:02:47]} 3. e4 {[%clk 0:02:49]}  d5 {[%clk 0:02:41]} 4. e5 {[%clk 0:02:45]}  c5 {[%clk 0:02:41]} 5. c3 {[%clk 0:02:39]}  Nc6 {[%clk 0:02:37]} 6. Be3 {[%clk 0:02:34]}  cxd4 {[%clk 0:02:34]} 7. cxd4 {[%clk 0:02:33]}  Qb6 {[%clk 0:02:33]} 8. Nc3 {[%clk 0:02:25]}  e6 {[%clk 0:02:10]} 9. Bb5 {[%clk 0:02:22]}  Bd7 {[%clk 0:02:03]} 10. Nge2 {[%clk 0:02:14]}  a6 {[%clk 0:01:46]} 11. Bxc6 {[%clk 0:02:12]}  Bxc6 {[%clk 0:01:39]} 12. Qd2 {[%clk 0:02:09]}  Ne7 {[%clk 0:01:34]} 13. O-O-O {[%clk 0:02:02]}  O-O-O {[%clk 0:01:33]} 14. h3 {[%clk 0:01:56]}  gxh3 {[%clk 0:01:32]} 15. Rxh3 {[%clk 0:01:56]}  Nf5 {[%clk 0:01:32]} 16. Kb1 {[%clk 0:01:46]}  Bb4 {[%clk 0:01:17]} 17. Rdh1 {[%clk 0:01:40]}  h6 {[%clk 0:01:15]} 18. Qd3 {[%clk 0:01:35]}  Ba3 {[%clk 0:01:10]} 19. b3 {[%clk 0:01:31]}  Rdf8 {[%clk 0:00:50]} 20. Bc1 {[%clk 0:01:16]}  Bxc1 {[%clk 0:00:42]} 21. Rxc1 {[%clk 0:01:16]}  Kb8 {[%clk 0:00:41]} 22. Nf4 {[%clk 0:01:08]}  Bd7 {[%clk 0:00:38]} 23. Ng6 {[%clk 0:01:07]}  Nxd4 {[%clk 0:00:33]} 24. Qe3 {[%clk 0:01:02]}  Ka7 {[%clk 0:00:20]} 25. Nxh8 {[%clk 0:00:56]}  Rxh8 {[%clk 0:00:21]} 26. Rd1 {[%clk 0:00:54]}  Nc6 {[%clk 0:00:21]} 27. Qxb6+ {[%clk 0:00:54]}  Kxb6 {[%clk 0:00:22]} 28. f4 {[%clk 0:00:53]}  Nb4 {[%clk 0:00:20]} 29. Ne2 {[%clk 0:00:52]}  Bb5 {[%clk 0:00:19]} 30. Nd4 {[%clk 0:00:51]}  Bd7 {[%clk 0:00:19]} 31. Rg3 {[%clk 0:00:51]}  Rg8 {[%clk 0:00:17]} 32. Rg6 {[%clk 0:00:50]}  Nc6 {[%clk 0:00:15]} 33. Nxe6 {[%clk 0:00:48]}  Bxe6 {[%clk 0:00:14]} 34. Rxe6 {[%clk 0:00:49]}  Kc5 {[%clk 0:00:13]} 35. f5 {[%clk 0:00:44]}  d4 {[%clk 0:00:13]} 36. f6 {[%clk 0:00:43]}  gxf6 {[%clk 0:00:13]} 37. exf6 {[%clk 0:00:44]}  Rf8 {[%clk 0:00:12]} 38. Rf1 {[%clk 0:00:43]}  Rf7 {[%clk 0:00:12]} 39. Rf5+ {[%clk 0:00:41]}  Kb4 {[%clk 0:00:10]} 40. Kc2 {[%clk 0:00:40]}  Nd8 {[%clk 0:00:06]} 41. Re7 {[%clk 0:00:39]}  Rf8 {[%clk 0:00:05]} 42. f7 {[%clk 0:00:38]}  b5 {[%clk 0:00:04]} 43. Kd3 {[%clk 0:00:37]}  Nc6 {[%clk 0:00:03]} 44. Re8 {[%clk 0:00:36]}  Rxf7 {[%clk 0:00:03]} 45. Rxf7 {[%clk 0:00:35]}  Ne5+ {[%clk 0:00:03]} 46. Kxd4 {[%clk 0:00:35]}  Nxf7 {[%clk 0:00:04]} 47. Re7 {[%clk 0:00:35]}  Ng5 {[%clk 0:00:04]} 48. Ra7 {[%clk 0:00:32]}  a5 {[%clk 0:00:04]} 49. a3+ {[%clk 0:00:28]}  Kxa3 {[%clk 0:00:03]} 50. Rxa5+ {[%clk 0:00:28]}  Kxb3 {[%clk 0:00:04]} 51. Rxb5+ {[%clk 0:00:28]}  Ka4 {[%clk 0:00:05]} 52. Rb8 {[%clk 0:00:28]}  Nf3+ {[%clk 0:00:04]} 53. Kc4 {[%clk 0:00:27]}  Nd2+ {[%clk 0:00:04]} 54. Kc3 {[%clk 0:00:27]}  Ne4+ {[%clk 0:00:05]} 55. Kd4 {[%clk 0:00:27]}  Nd2 {[%clk 0:00:05]} 56. Rh8 {[%clk 0:00:26]}  Nb3+ {[%clk 0:00:05]} 57. Kd5 {[%clk 0:00:26]}  Kb4 {[%clk 0:00:05]} 58. Rxh6 {[%clk 0:00:26]}  Kc3 {[%clk 0:00:05]} 59. Rc6+ {[%clk 0:00:26]}  Kd3 {[%clk 0:00:04]} 60. Rh6 {[%clk 0:00:25]}  Na5 {[%clk 0:00:04]} 61. Rh3+ {[%clk 0:00:25]}  Ke2 {[%clk 0:00:04]} 62. Rc3 {[%clk 0:00:24]}  Nb7 {[%clk 0:00:04]} 63. Kc6 {[%clk 0:00:24]}  Nd8+ {[%clk 0:00:04]} 64. Kd6 {[%clk 0:00:22]}  Nf7+ {[%clk 0:00:04]} 65. Ke6 {[%clk 0:00:22]}  Ng5+ {[%clk 0:00:05]} 66. Kf5 {[%clk 0:00:22]}  Nf3 {[%clk 0:00:05]} 67. Ra3 {[%clk 0:00:21]}  Nd2 {[%clk 0:00:06]} 68. Kf4 {[%clk 0:00:21]}  Nf1 {[%clk 0:00:05]} 69. Ra2+ {[%clk 0:00:20]}  Nd2 {[%clk 0:00:06]} 70. Ke5 {[%clk 0:00:20]}  Kd3 {[%clk 0:00:04]} 71. Ra3+ {[%clk 0:00:19]}  Ke2 {[%clk 0:00:04]} 72. Rh3 {[%clk 0:00:20]}  Nf3+ {[%clk 0:00:04]} 73. Kf4 {[%clk 0:00:19]}  Nd2 {[%clk 0:00:05]} 74. Rh2+ {[%clk 0:00:19]}  Kd3 {[%clk 0:00:05]} 75. Ke5 {[%clk 0:00:19]}  Nc4+ {[%clk 0:00:05]} 76. Kd5 {[%clk 0:00:18]}  Ne3+ {[%clk 0:00:06]} 77. Kc5 {[%clk 0:00:19]}  Ke4 {[%clk 0:00:04]} 78. Rh4+ {[%clk 0:00:19]}  Kf3 {[%clk 0:00:05]} 79. Ra4 {[%clk 0:00:19]}  Nf5 {[%clk 0:00:04]} 80. Kd5 {[%clk 0:00:19]}  Ne3+ {[%clk 0:00:04]} 81. Ke5 {[%clk 0:00:19]}  Ng4+ {[%clk 0:00:04]} 82. Kf5 {[%clk 0:00:19]}  Ne3+ {[%clk 0:00:04]} 83. Kg5 {[%clk 0:00:20]}  Ke2 {[%clk 0:00:03]} 84. Ra3 {[%clk 0:00:20]}  Ng2 {[%clk 0:00:03]} 85. Kg4 {[%clk 0:00:19]}  Ne3+ {[%clk 0:00:02]} 86. Kf4 {[%clk 0:00:20]}  Ng2+ {[%clk 0:00:03]} 87. Ke4 {[%clk 0:00:20]}  Kf2 {[%clk 0:00:03]} 88. Ra2+ {[%clk 0:00:20]}  Kg3 {[%clk 0:00:02]} 89. Ra3+ {[%clk 0:00:20]}  Kg4 {[%clk 0:00:03]} 90. Ra1 {[%clk 0:00:18]}  Nh4 {[%clk 0:00:02]} 91. Rg1+ {[%clk 0:00:18]}  Kh5 {[%clk 0:00:02]} 92. Kf4 {[%clk 0:00:17]}  Ng6+ {[%clk 0:00:02]} 93. Kf5 {[%clk 0:00:18]}  Nh4+ {[%clk 0:00:03]} 94. Kf6 {[%clk 0:00:18]}  Nf3 {[%clk 0:00:01]} 95. Rg8 {[%clk 0:00:17]}  Nh4 {[%clk 0:00:02]} 96. Rh8+ {[%clk 0:00:16]}  Kg4 {[%clk 0:00:03]} 97. Rg8+ {[%clk 0:00:16]}  Kh3 {[%clk 0:00:03]} 98. Kg5 {[%clk 0:00:15]}  Kg3 {[%clk 0:00:03]} 99. Kh5+ {[%clk 0:00:15]}  Kh3 {[%clk 0:00:04]} 100. Rg4 {[%clk 0:00:15]}  Ng2 {[%clk 0:00:04]} 101. Ra4 {[%clk 0:00:15]}  Nf4+ {[%clk 0:00:03]} 102. Kg5 {[%clk 0:00:15]}  Ng2 {[%clk 0:00:04]} 103. Ra3+ {[%clk 0:00:15]}  Kh2 {[%clk 0:00:04]} 104. Kg4 {[%clk 0:00:15]}  Kg1 {[%clk 0:00:05]} 105. Ra2 {[%clk 0:00:14]}  Ne1 {[%clk 0:00:04]} 106. Kg3 {[%clk 0:00:14]}  Kf1 {[%clk 0:00:04]} 107. Rh2 {[%clk 0:00:09]}  Nd3 {[%clk 0:00:03]} 108. Kf3 {[%clk 0:00:08]} 1/2-1/2


[Site "https://www.chess.com"]

[Event "Titled Tuesday Blitz April 4 Early 2023"]
[White "Necula, Iulian"]
[Black "Rose, Felix"]
[WhiteFideId "1232380"]
[BlackFideId "5105722"]
[WhiteElo "1790"]
[BlackElo "2039"]
[Result "0-1"]
[Round "06"]
[TimeControl "180+2"]
[Date "2023.04.04"]
[WhiteClock "0:00:04"]
[BlackClock "0:01:12"]

1. d4 {[%clk 0:03:00]}  Nf6 {[%clk 0:02:59]} 2. Nc3 {[%clk 0:03:01]}  d5 {[%clk 0:02:59]} 3. Bf4 {[%clk 0:03:01]}  c5 {[%clk 0:02:59]} 4. e3 {[%clk 0:03:01]}  cxd4 {[%clk 0:02:59]} 5. exd4 {[%clk 0:03:01]}  a6 {[%clk 0:03:00]} 6. Nf3 {[%clk 0:03:00]}  Nc6 {[%clk 0:03:00]} 7. a3 {[%clk 0:03:00]}  Bg4 {[%clk 0:02:59]} 8. Be2 {[%clk 0:03:00]}  e6 {[%clk 0:02:59]} 9. O-O {[%clk 0:02:55]}  Bd6 {[%clk 0:03:00]} 10. Ne5 {[%clk 0:02:54]}  Bxe2 {[%clk 0:02:56]} 11. Nxe2 {[%clk 0:02:53]}  Qc7 {[%clk 0:02:55]} 12. Re1 {[%clk 0:02:22]}  Nxe5 {[%clk 0:02:49]} 13. dxe5 {[%clk 0:02:23]}  Bxe5 {[%clk 0:02:50]} 14. Bxe5 {[%clk 0:02:23]}  Qxe5 {[%clk 0:02:51]} 15. Nd4 {[%clk 0:02:06]}  Qc7 {[%clk 0:02:26]} 16. c3 {[%clk 0:01:05]}  O-O {[%clk 0:02:22]} 17. h3 {[%clk 0:00:57]}  Rfe8 {[%clk 0:02:12]} 18. g4 {[%clk 0:00:40]}  Ne4 {[%clk 0:02:05]} 19. Re3 {[%clk 0:00:30]}  Qf4 {[%clk 0:01:45]} 20. Rf3 {[%clk 0:00:22]}  Qd2 {[%clk 0:01:44]} 21. Qxd2 {[%clk 0:00:13]}  Nxd2 {[%clk 0:01:44]} 22. Rd3 {[%clk 0:00:14]}  Nc4 {[%clk 0:01:40]} 23. Rb1 {[%clk 0:00:13]}  b5 {[%clk 0:01:39]} 24. f4 {[%clk 0:00:09]}  Rac8 {[%clk 0:01:34]} 25. Kf2 {[%clk 0:00:09]}  Nd6 {[%clk 0:01:33]} 26. Kf3 {[%clk 0:00:07]}  Ne4 {[%clk 0:01:31]} 27. Re1 {[%clk 0:00:04]}  f6 {[%clk 0:01:30]} 28. f5 {[%clk 0:00:02]}  exf5 {[%clk 0:01:25]} 29. Nxf5 {[%clk 0:00:02]}  Ng5+ {[%clk 0:01:25]} 30. Kf2 {[%clk 0:00:01]}  Rxe1 {[%clk 0:01:19]} 31. Kxe1 {[%clk 0:00:02]}  Re8+ {[%clk 0:01:18]} 32. Kd2 {[%clk 0:00:03]}  Ne4+ {[%clk 0:01:18]} 33. Kc2 {[%clk 0:00:03]}  g6 {[%clk 0:01:13]} 34. Rxd5 {[%clk 0:00:02]}  gxf5 {[%clk 0:01:12]} 35. Rxf5 {[%clk 0:00:03]}  Kg7 {[%clk 0:01:11]} 36. h4 {[%clk 0:00:03]}  Nd6 {[%clk 0:01:11]} 37. g5 {[%clk 0:00:04]}  Nxf5 {[%clk 0:01:11]} 38. gxf6+ {[%clk 0:00:04]}  Kxf6 {[%clk 0:01:12]} 0-1


[Site "https://www.chess.com"]

[Event "Titled Tuesday Blitz April 4 Early 2023"]
[White "Maluco_do_Natal_00"]
[Black "Orujov2008"]
[WhiteElo "2001"]
[BlackElo "2279"]
[Result "0-1"]
[Round "06"]
[TimeControl "180+2"]
[Date "2023.04.04"]
[WhiteClock "0:00:02"]
[BlackClock "0:00:59"]

1. e4 {[%clk 0:02:56]}  c5 {[%clk 0:02:59]} 2. Nf3 {[%clk 0:02:55]}  d6 {[%clk 0:03:00]} 3. d4 {[%clk 0:02:55]}  cxd4 {[%clk 0:03:00]} 4. Nxd4 {[%clk 0:02:56]}  Nf6 {[%clk 0:03:01]} 5. Nc3 {[%clk 0:02:56]}  a6 {[%clk 0:03:01]} 6. Be3 {[%clk 0:02:56]}  e5 {[%clk 0:03:01]} 7. Nb3 {[%clk 0:02:57]}  Be7 {[%clk 0:03:00]} 8. f3 {[%clk 0:02:56]}  O-O {[%clk 0:03:00]} 9. Qd2 {[%clk 0:02:56]}  Be6 {[%clk 0:03:01]} 10. O-O-O {[%clk 0:02:56]}  Nbd7 {[%clk 0:03:01]} 11. g4 {[%clk 0:02:56]}  b5 {[%clk 0:03:01]} 12. g5 {[%clk 0:02:56]}  Nh5 {[%clk 0:03:01]} 13. Kb1 {[%clk 0:02:51]}  b4 {[%clk 0:03:01]} 14. Nd5 {[%clk 0:02:51]}  Bxd5 {[%clk 0:03:01]} 15. exd5 {[%clk 0:02:46]}  a5 {[%clk 0:03:00]} 16. Nc1 {[%clk 0:02:17]}  Qb8 {[%clk 0:02:51]} 17. Bh3 {[%clk 0:02:05]}  Nb6 {[%clk 0:02:47]} 18. Qe2 {[%clk 0:01:50]}  Re8 {[%clk 0:02:37]} 19. Qb5 {[%clk 0:01:44]}  Nf4 {[%clk 0:02:13]} 20. Bxf4 {[%clk 0:01:25]}  exf4 {[%clk 0:02:14]} 21. Rhe1 {[%clk 0:01:16]}  Qc7 {[%clk 0:02:05]} 22. Nd3 {[%clk 0:01:02]}  Nc4 {[%clk 0:01:51]} 23. Nxf4 {[%clk 0:00:43]}  Ne5 {[%clk 0:01:33]} 24. Nd3 {[%clk 0:00:11]}  Reb8 {[%clk 0:01:31]} 25. Qa4 {[%clk 0:00:08]}  Nc4 {[%clk 0:01:23]} 26. f4 {[%clk 0:00:05]}  f6 {[%clk 0:01:20]} 27. Bf5 {[%clk 0:00:03]}  fxg5 {[%clk 0:01:17]} 28. Be6+ {[%clk 0:00:02]}  Kh8 {[%clk 0:01:16]} 29. Rg1 {[%clk 0:00:02]}  Bf6 {[%clk 0:01:14]} 30. fxg5 {[%clk 0:00:01]}  Bd4 {[%clk 0:01:09]} 31. Rg4 {[%clk 0:00:01]}  Bxb2 {[%clk 0:01:06]} 32. Nxb2 {[%clk 0:00:01]}  Na3+ {[%clk 0:01:06]} 33. Ka1 {[%clk 0:00:01]}  Nxc2+ {[%clk 0:01:07]} 34. Kb1 {[%clk 0:00:01]}  Na3+ {[%clk 0:01:08]} 35. Ka1 {[%clk 0:00:01]}  Rc8 {[%clk 0:01:07]} 36. Rb1 {[%clk 0:00:01]}  Nc2+ {[%clk 0:01:07]} 37. Qxc2 {[%clk 0:00:01]}  Qxc2 {[%clk 0:01:08]} 38. g6 {[%clk 0:00:02]}  h6 {[%clk 0:01:06]} 39. Rf4 {[%clk 0:00:01]}  Rf8 {[%clk 0:01:03]} 40. Rf7 {[%clk 0:00:01]}  Rxf7 {[%clk 0:01:03]} 41. Bxf7 {[%clk 0:00:02]}  a4 {[%clk 0:00:59]} 42. h4 {[%clk 0:00:02]}  b3 {[%clk 0:00:59]} 43. a3 {[%clk 0:00:02]}  Qc5 {[%clk 0:01:00]} 44. Be6 {[%clk 0:00:02]}  Qxa3# {[%clk 0:00:59]} 0-1


[Site "https://www.chess.com"]

[Event "Titled Tuesday Blitz April 4 Early 2023"]
[White "Legenia, Artem"]
[Black "hsd2016"]
[WhiteFideId "14136945"]
[WhiteElo "1992"]
[BlackElo "2036"]
[Result "0-1"]
[Round "06"]
[TimeControl "180+2"]
[Date "2023.04.04"]
[WhiteClock "0:01:04"]
[BlackClock "0:01:06"]

1. e4 {[%clk 0:03:00]}  e5 {[%clk 0:02:58]} 2. Nf3 {[%clk 0:02:59]}  Nc6 {[%clk 0:02:58]} 3. Nc3 {[%clk 0:02:56]}  Nf6 {[%clk 0:02:58]} 4. Nxe5 {[%clk 0:02:54]}  Nxe5 {[%clk 0:02:57]} 5. d4 {[%clk 0:02:54]}  Nc6 {[%clk 0:02:48]} 6. d5 {[%clk 0:02:49]}  Ne5 {[%clk 0:02:46]} 7. f4 {[%clk 0:02:48]}  Ng6 {[%clk 0:02:46]} 8. e5 {[%clk 0:02:48]}  Ng8 {[%clk 0:02:45]} 9. d6 {[%clk 0:02:41]}  cxd6 {[%clk 0:02:41]} 10. Bc4 {[%clk 0:02:41]}  dxe5 {[%clk 0:02:40]} 11. O-O {[%clk 0:02:41]}  Nf6 {[%clk 0:02:39]} 12. fxe5 {[%clk 0:02:33]}  Nxe5 {[%clk 0:02:39]} 13. Qe2 {[%clk 0:02:19]}  d6 {[%clk 0:02:38]} 14. Bg5 {[%clk 0:02:17]}  Be7 {[%clk 0:02:38]} 15. Bb5+ {[%clk 0:02:02]}  Bd7 {[%clk 0:02:36]} 16. Bxd7+ {[%clk 0:02:02]}  Qxd7 {[%clk 0:02:37]} 17. Rad1 {[%clk 0:01:50]}  O-O-O {[%clk 0:02:29]} 18. Rf4 {[%clk 0:01:38]}  h6 {[%clk 0:02:15]} 19. Bxf6 {[%clk 0:01:38]}  Bxf6 {[%clk 0:02:15]} 20. Nd5 {[%clk 0:01:35]}  Bg5 {[%clk 0:02:12]} 21. Rb4 {[%clk 0:01:33]}  Rhe8 {[%clk 0:02:01]} 22. Qf2 {[%clk 0:01:30]}  Nc6 {[%clk 0:01:47]} 23. Ra4 {[%clk 0:01:26]}  Qe6 {[%clk 0:01:43]} 24. b4 {[%clk 0:01:20]}  Qxd5 {[%clk 0:01:32]} 25. Rxd5 {[%clk 0:01:16]}  Be3 {[%clk 0:01:33]} 26. b5 {[%clk 0:01:15]}  Bxf2+ {[%clk 0:01:30]} 27. Kxf2 {[%clk 0:01:15]}  Ne7 {[%clk 0:01:27]} 28. Rd3 {[%clk 0:01:13]}  Kb8 {[%clk 0:01:15]} 29. c4 {[%clk 0:01:13]}  b6 {[%clk 0:01:11]} 30. Rf3 {[%clk 0:01:08]}  f6 {[%clk 0:01:11]} 31. Rg3 {[%clk 0:01:08]}  g5 {[%clk 0:01:09]} 32. Rf3 {[%clk 0:01:08]}  f5 {[%clk 0:01:08]} 33. Raa3 {[%clk 0:01:07]}  f4 {[%clk 0:01:09]} 34. Rad3 {[%clk 0:01:06]}  Ng6 {[%clk 0:01:09]} 35. Rb3 {[%clk 0:01:05]}  Ne5 {[%clk 0:01:08]} 36. Rfc3 {[%clk 0:01:05]}  Rc8 {[%clk 0:01:07]} 37. h3 {[%clk 0:01:04]}  Rxc4 {[%clk 0:01:06]} 0-1


[Site "https://www.chess.com"]

[Event "Titled Tuesday Blitz April 4 Early 2023"]
[White "Vaglio Munoz, Jaime"]
[Black "Sankalan Shah"]
[WhiteFideId "6500145"]
[BlackFideId "25600362"]
[WhiteElo "2199"]
[BlackElo "2118"]
[Result "0-1"]
[Round "06"]
[TimeControl "180+2"]
[Date "2023.04.04"]
[WhiteClock "0:00:09"]
[BlackClock "0:00:44"]

1. e4 {[%clk 0:03:00]}  c5 {[%clk 0:02:54]} 2. a3 {[%clk 0:03:00]}  g6 {[%clk 0:02:51]} 3. b4 {[%clk 0:03:00]}  Bg7 {[%clk 0:02:52]} 4. c3 {[%clk 0:03:01]}  cxb4 {[%clk 0:02:52]} 5. axb4 {[%clk 0:03:00]}  a6 {[%clk 0:02:49]} 6. d4 {[%clk 0:02:58]}  d5 {[%clk 0:02:48]} 7. e5 {[%clk 0:02:58]}  Nh6 {[%clk 0:02:47]} 8. h3 {[%clk 0:02:55]}  a5 {[%clk 0:02:40]} 9. b5 {[%clk 0:02:37]}  b6 {[%clk 0:02:32]} 10. g4 {[%clk 0:02:36]}  O-O {[%clk 0:02:29]} 11. f4 {[%clk 0:02:36]}  f6 {[%clk 0:02:23]} 12. exf6 {[%clk 0:02:33]}  exf6 {[%clk 0:02:23]} 13. Nf3 {[%clk 0:02:31]}  Nf7 {[%clk 0:02:22]} 14. Kf2 {[%clk 0:02:30]}  Nd6 {[%clk 0:02:21]} 15. Bd3 {[%clk 0:02:29]}  Re8 {[%clk 0:02:20]} 16. Kg2 {[%clk 0:02:26]}  Bd7 {[%clk 0:02:16]} 17. Na3 {[%clk 0:02:24]}  Qc7 {[%clk 0:02:14]} 18. Bd2 {[%clk 0:02:23]}  Ne4 {[%clk 0:02:11]} 19. Rc1 {[%clk 0:02:19]}  Qd6 {[%clk 0:02:06]} 20. Nb1 {[%clk 0:02:14]}  Be6 {[%clk 0:02:01]} 21. Re1 {[%clk 0:02:09]}  Bf7 {[%clk 0:02:01]} 22. c4 {[%clk 0:02:03]}  Nd7 {[%clk 0:01:55]} 23. Be3 {[%clk 0:01:37]}  Rac8 {[%clk 0:01:46]} 24. Nbd2 {[%clk 0:01:34]}  g5 {[%clk 0:01:26]} 25. Ne5 {[%clk 0:00:55]}  fxe5 {[%clk 0:01:20]} 26. fxe5 {[%clk 0:00:54]}  Nxe5 {[%clk 0:01:09]} 27. Nxe4 {[%clk 0:00:36]}  dxe4 {[%clk 0:00:58]} 28. Bxe4 {[%clk 0:00:19]}  Nxc4 {[%clk 0:00:58]} 29. Rxc4 {[%clk 0:00:16]}  Bxc4 {[%clk 0:00:57]} 30. Qb1 {[%clk 0:00:15]}  Rxe4 {[%clk 0:00:55]} 31. Kf2 {[%clk 0:00:13]}  Rce8 {[%clk 0:00:53]} 32. h4 {[%clk 0:00:10]}  Rxe3 {[%clk 0:00:50]} 33. Kg2 {[%clk 0:00:10]}  Rxe1 {[%clk 0:00:49]} 34. Qf5 {[%clk 0:00:10]}  R8e2+ {[%clk 0:00:46]} 35. Kf3 {[%clk 0:00:09]}  Rf1# {[%clk 0:00:44]} 0-1


[Site "https://www.chess.com"]

[Event "Titled Tuesday Blitz April 4 Early 2023"]
[White "dDobravcan"]
[Black "Itkis, Boris"]
[BlackFideId "1209167"]
[WhiteElo "2133"]
[BlackElo "2216"]
[Result "1-0"]
[Round "06"]
[TimeControl "180+2"]
[Date "2023.04.04"]
[WhiteClock "0:01:19"]
[BlackClock "0:00:03"]

1. e4 {[%clk 0:03:00]}  e6 {[%clk 0:03:00]} 2. d3 {[%clk 0:02:58]}  d5 {[%clk 0:03:00]} 3. Nd2 {[%clk 0:02:58]}  c5 {[%clk 0:03:00]} 4. Ngf3 {[%clk 0:02:58]}  Nc6 {[%clk 0:03:01]} 5. g3 {[%clk 0:02:58]}  Nf6 {[%clk 0:03:01]} 6. Bg2 {[%clk 0:02:58]}  Be7 {[%clk 0:03:00]} 7. O-O {[%clk 0:02:59]}  O-O {[%clk 0:02:59]} 8. Re1 {[%clk 0:02:59]}  b5 {[%clk 0:02:58]} 9. e5 {[%clk 0:02:58]}  Nd7 {[%clk 0:02:58]} 10. Nf1 {[%clk 0:02:54]}  Qc7 {[%clk 0:02:56]} 11. Bf4 {[%clk 0:02:52]}  Bb7 {[%clk 0:02:49]} 12. c3 {[%clk 0:02:50]}  Rfc8 {[%clk 0:02:41]} 13. h4 {[%clk 0:02:49]}  a5 {[%clk 0:02:40]} 14. N1h2 {[%clk 0:02:39]}  c4 {[%clk 0:02:04]} 15. d4 {[%clk 0:02:38]}  b4 {[%clk 0:01:58]} 16. h5 {[%clk 0:02:36]}  h6 {[%clk 0:01:57]} 17. Ng4 {[%clk 0:02:34]}  Bf8 {[%clk 0:01:48]} 18. Qd2 {[%clk 0:02:25]}  bxc3 {[%clk 0:01:44]} 19. bxc3 {[%clk 0:02:23]}  Qd8 {[%clk 0:01:41]} 20. Rab1 {[%clk 0:02:09]}  Rcb8 {[%clk 0:01:38]} 21. Nxh6+ {[%clk 0:02:01]}  gxh6 {[%clk 0:01:37]} 22. Bxh6 {[%clk 0:02:01]}  Bxh6 {[%clk 0:01:37]} 23. Qxh6 {[%clk 0:01:59]}  Qf8 {[%clk 0:01:37]} 24. Qf4 {[%clk 0:01:58]}  Ne7 {[%clk 0:01:24]} 25. g4 {[%clk 0:01:48]}  Qg7 {[%clk 0:01:00]} 26. Nh2 {[%clk 0:01:40]}  Kh8 {[%clk 0:00:54]} 27. g5 {[%clk 0:01:36]}  Rg8 {[%clk 0:00:51]} 28. Rxb7 {[%clk 0:01:34]}  Rad8 {[%clk 0:00:20]} 29. g6 {[%clk 0:01:27]}  fxg6 {[%clk 0:00:18]} 30. h6 {[%clk 0:01:27]}  Qf8 {[%clk 0:00:13]} 31. Qg5 {[%clk 0:01:25]}  Nf5 {[%clk 0:00:11]} 32. Ng4 {[%clk 0:01:25]}  Qe7 {[%clk 0:00:07]} 33. Nf6 {[%clk 0:01:22]}  Rgf8 {[%clk 0:00:03]} 34. Reb1 {[%clk 0:01:19]} 1-0


[Site "https://www.chess.com"]

[Event "Titled Tuesday Blitz April 4 Early 2023"]
[White "rionelG"]
[Black "Latreche, Khadidja"]
[BlackFideId "7901780"]
[WhiteElo "2192"]
[BlackElo "1869"]
[Result "1-0"]
[Round "06"]
[TimeControl "180+2"]
[Date "2023.04.04"]
[WhiteClock "0:00:39"]
[BlackClock "0:00:13"]

1. e4 {[%clk 0:02:48]}  e5 {[%clk 0:02:59]} 2. Nf3 {[%clk 0:02:47]}  Nc6 {[%clk 0:02:58]} 3. d4 {[%clk 0:02:48]}  exd4 {[%clk 0:02:58]} 4. Nxd4 {[%clk 0:02:49]}  Nf6 {[%clk 0:02:55]} 5. Nxc6 {[%clk 0:02:48]}  bxc6 {[%clk 0:02:55]} 6. e5 {[%clk 0:02:40]}  Nd5 {[%clk 0:02:54]} 7. c4 {[%clk 0:02:39]}  Nb6 {[%clk 0:02:37]} 8. Bd3 {[%clk 0:02:39]}  Bb4+ {[%clk 0:02:27]} 9. Bd2 {[%clk 0:02:36]}  Bxd2+ {[%clk 0:02:25]} 10. Nxd2 {[%clk 0:02:37]}  Qg5 {[%clk 0:02:22]} 11. O-O {[%clk 0:02:36]}  O-O {[%clk 0:02:20]} 12. f4 {[%clk 0:02:30]}  Qe7 {[%clk 0:02:19]} 13. Qh5 {[%clk 0:02:20]}  g6 {[%clk 0:02:18]} 14. Qh6 {[%clk 0:02:21]}  d6 {[%clk 0:02:11]} 15. Rae1 {[%clk 0:02:17]}  d5 {[%clk 0:01:53]} 16. Kh1 {[%clk 0:02:13]}  Ba6 {[%clk 0:01:43]} 17. f5 {[%clk 0:02:06]}  f6 {[%clk 0:01:23]} 18. fxg6 {[%clk 0:02:04]}  Qg7 {[%clk 0:01:12]} 19. gxh7+ {[%clk 0:01:52]}  Kh8 {[%clk 0:01:04]} 20. Qxg7+ {[%clk 0:01:49]}  Kxg7 {[%clk 0:01:04]} 21. exf6+ {[%clk 0:01:49]}  Kh8 {[%clk 0:01:01]} 22. Re7 {[%clk 0:01:34]}  dxc4 {[%clk 0:01:00]} 23. Be2 {[%clk 0:01:28]}  Rad8 {[%clk 0:00:51]} 24. Ne4 {[%clk 0:01:24]}  Nd5 {[%clk 0:00:49]} 25. Re6 {[%clk 0:01:10]}  Bc8 {[%clk 0:00:42]} 26. Rxc6 {[%clk 0:01:08]}  Rde8 {[%clk 0:00:34]} 27. Bf3 {[%clk 0:01:07]}  Bb7 {[%clk 0:00:28]} 28. Rxc4 {[%clk 0:01:03]}  Ne3 {[%clk 0:00:28]} 29. Rfc1 {[%clk 0:00:58]}  Nxc4 {[%clk 0:00:26]} 30. Rxc4 {[%clk 0:00:59]}  Bxe4 {[%clk 0:00:25]} 31. Bxe4 {[%clk 0:00:58]}  Rxf6 {[%clk 0:00:24]} 32. h3 {[%clk 0:00:57]}  Rfe6 {[%clk 0:00:21]} 33. Bf5 {[%clk 0:00:51]}  Re1+ {[%clk 0:00:19]} 34. Kh2 {[%clk 0:00:51]}  R1e7 {[%clk 0:00:18]} 35. h4 {[%clk 0:00:47]}  Rb8 {[%clk 0:00:17]} 36. b3 {[%clk 0:00:46]}  Rb6 {[%clk 0:00:16]} 37. h5 {[%clk 0:00:44]}  Rh6 {[%clk 0:00:15]} 38. g4 {[%clk 0:00:41]}  Rhxh7 {[%clk 0:00:14]} 39. Bxh7 {[%clk 0:00:41]}  Kxh7 {[%clk 0:00:15]} 40. Kg3 {[%clk 0:00:39]}  Kh6 {[%clk 0:00:15]} 41. Kh4 {[%clk 0:00:39]}  Re1 {[%clk 0:00:14]} 42. Rc6+ {[%clk 0:00:39]}  Kg7 {[%clk 0:00:13]} 43. Rxc7+ {[%clk 0:00:39]} 1-0


[Site "https://www.chess.com"]